fUST/lending_fUST_20260117
["ID","MTS","AMOUNT","RATE_DAILY","PERIOD"]
[402311501,1768653103404,-628.44,0.00018356,3]
[402311502,1768653103413,-727.95,0.00018356,3]
[402311503,1768653103423,-500.0,0.00018356,3]
[402311504,1768653103432,-630.14,0.00018356,3]
[402311505,1768653103441,-1251.31,0.00018356,3]
[402311506,1768653103450,-1417.89,0.00018356,3]
[402311507,1768653103459,-500.0,0.00018356,3]
[402311508,1768653103469,-577.84,0.00018356,3]
[402311509,1768653103479,-973.16,0.00018356,3]
[402311510,1768653103489,-500.0,0.00018356,3]
[402311511,1768653103500,-1036.96,0.00018356,3]
[402311512,1768653103512,-1088.19,0.00018356,3]
[402311513,1768653103523,-1329.23,0.00018356,3]
[402311514,1768653103534,-921.27,0.00018356,3]
[402311515,1768653103543,-1127.31,0.00018356,3]
[402311516,1768653103552,-500.0,0.00018356,3]
[402311517,1768653103561,-1509.89,0.00018356,3]
[402311518,1768653103571,-500.0,0.00018356,3]
[402311519,1768653103580,-520.22,0.00018356,3]
[402311520,1768653103591,-531.74,0.00018356,3]
[402311521,1768653103600,-1025.56,0.00018356,3]
[402311522,1768653103609,-500.0,0.00018356,3]
[402311523,1768653103619,-818.49,0.00018356,3]
[402311524,1768653103628,-500.0,0.00018356,3]
[402311525,1768653103637,-500.0,0.00018356,3]
[402311526,1768653103646,-500.0,0.00018356,3]
[402311527,1768653103655,-700.82,0.00018356,3]
[402311528,1768653103664,-500.0,0.00018356,3]
[402311529,1768653103674,-500.0,0.00018356,3]
[402311530,1768653103683,-977.67,0.00018356,3]
[402311531,1768653103692,-379.25255787,0.00018356,3]
[402311532,1768653103702,-630.85,0.00018356,3]
[402311533,1768653103712,-500.0,0.00018356,3]
[402311534,1768653103726,-500.0,0.00018356,3]
[402311535,1768653103735,-500.0,0.00018356,3]
[402311536,1768653103745,-2456.62,0.00018356,3]
[402311537,1768653103754,-619.01,0.00018356,3]
[402311538,1768653103765,-1759.84,0.00018356,3]
[402311539,1768653103773,-590.26232333,0.00018356,3]
[402311540,1768653103783,-647.1,0.00018356,3]
[402311541,1768653103792,-500.0,0.00018356,3]
[402311542,1768653103804,-1436.74,0.00018356,3]
[402311543,1768653103814,-588.13,0.00018356,3]
[402311544,1768653103823,-500.0,0.00018356,3]
[402311545,1768653103834,-1441.58,0.00018356,3]
[402311546,1768653103844,-1626.75,0.00018356,3]
[402311547,1768653103854,-500.0,0.00018356,3]
[402311548,1768653103863,-1076.17,0.00018356,3]
[402311549,1768653103873,-619.77,0.00018356,3]
[402311550,1768653103882,-2016.32,0.00018356,3]
[402311551,1768653103892,-564.98156914,0.00018356,3]
[402311552,1768653103902,-611.35197763,0.00018356,3]
[402311553,1768653103911,-500.0,0.00018356,3]
[402311554,1768653103921,-500.0,0.00018356,3]
[402311555,1768653103930,-1493.38,0.00018356,3]
[402311556,1768653103941,-500.0,0.00018356,3]
[402311557,1768653103951,-523.78,0.00018356,3]
[402311558,1768653103961,-500.0,0.00018356,3]
[402311559,1768653103971,-1066.54,0.00018356,3]
[402311560,1768653103980,-500.0,0.00018356,3]
[402311561,1768653103990,-500.0,0.00018356,3]
[402311562,1768653103999,-500.0,0.00018356,3]
[402311563,1768653104009,-500.0,0.00018356,3]
[402311564,1768653104018,-1293.83,0.00018356,3]
[402311565,1768653104028,-500.0,0.00018356,3]
[402311566,1768653104038,-1150.99,0.00018356,3]
[402311567,1768653104047,-944.2,0.00018356,3]
[402311568,1768653104056,-1047.08,0.00018356,3]
[402311569,1768653104065,-500.0,0.00018356,3]
[402311570,1768653104075,-500.0,0.00018356,3]
[402311571,1768653104085,-500.0,0.00018356,3]
[402311572,1768653104094,-2703.42,0.00018356,3]
[402311573,1768653104104,-1993.96,0.00018356,3]
[402311574,1768653104115,-774.73,0.00018356,3]
[402311575,1768653104125,-500.0,0.00018356,3]
[402311576,1768653104135,-848.49,0.00018356,3]
[402311577,1768653104145,-617.76,0.00018356,3]
[402311578,1768653104154,-500.0,0.00018356,3]
[402311579,1768653104164,-500.0,0.00018356,3]
[402311580,1768653104175,-500.0,0.00018356,3]
[402311581,1768653104184,-500.0,0.00018356,3]
[402311582,1768653104194,-847.18,0.00018356,3]
[402311583,1768653104203,-500.0,0.00018356,3]
[402311584,1768653104212,-500.0,0.00018356,3]
[402311585,1768653104223,-1000.0,0.00018356,2]
[402311586,1768653104233,-834.37,0.00018356,3]
[402311587,1768653104242,-500.0,0.00018356,3]
[402311588,1768653104252,-500.0,0.00018356,3]
[402311589,1768653104262,-1719.9,0.00018356,3]
[402311590,1768653104272,-618.91,0.00018356,3]
[402311591,1768653104281,-771.05,0.00018356,3]
[402311592,1768653104291,-1140.43,0.00018356,3]
[402311593,1768653104300,-500.0,0.00018356,3]
[402311594,1768653104310,-514.45,0.00018356,3]
[402311595,1768653104320,-500.0,0.00018356,3]
[402311596,1768653104329,-523.35,0.00018356,3]
[402311597,1768653104340,-500.0,0.00018356,3]
[402311598,1768653104350,-500.0,0.00018356,3]
[402311599,1768653104361,-500.0,0.00018356,3]
[402311600,1768653104371,-1709.81,0.00018356,3]
[402311601,1768653104381,-512.66871378,0.00018356,3]
[402311602,1768653104390,-1132.82,0.00018356,3]
[402311603,1768653104400,-1287.57,0.00018356,3]
[402311604,1768653104410,-500.0,0.00018356,3]
[402311605,1768653104421,-500.0,0.00018356,3]
[402311606,1768653104432,-500.0,0.00018356,3]
[402311607,1768653104444,-1892.19,0.00018356,3]
[402311608,1768653104454,-563.8,0.00018356,3]
[402311609,1768653104463,-1294.45,0.00018356,3]
[402311610,1768653104472,-500.0,0.00018356,3]
[402311611,1768653104482,-694.6,0.00018356,3]
[402311612,1768653104492,-817.66,0.00018356,3]
[402311613,1768653104502,-500.0,0.00018356,3]
[402311614,1768653104513,-500.0,0.00018356,3]
[402311615,1768653104522,-1517.43,0.00018356,3]
[402311616,1768653104532,-931.54,0.00018356,3]
[402311617,1768653104542,-500.0,0.00018356,3]
[402311618,1768653104553,-1075.67,0.00018356,3]
[402311619,1768653104564,-1255.88,0.00018356,3]
[402311620,1768653104573,-1451.63,0.00018356,3]
[402311621,1768653104583,-730.33,0.00018356,3]
[402311622,1768653104593,-694.92,0.00018356,3]
[402311623,1768653104602,-1054.42,0.00018356,3]
[402311624,1768653104612,-500.0,0.00018356,3]
[402311625,1768653104623,-500.0,0.00018356,3]
[402311626,1768653104635,-500.0,0.00018356,3]
[402311627,1768653104716,-500.0,0.00018356,3]
[402311628,1768653104729,-2132.97,0.00018356,3]
[402311629,1768653104740,-500.0,0.00018356,3]
[402311630,1768653104750,-633.14,0.00018356,3]
[402311631,1768653104759,-700.32,0.00018356,3]
[402311632,1768653104769,-500.0,0.00018356,3]
[402311633,1768653104781,-588.41,0.00018356,3]
[402311634,1768653104790,-1559.59,0.00018356,3]
[402311635,1768653104799,-1366.17,0.00018356,3]
[402311636,1768653104808,-1199.96,0.00018356,3]
[402311637,1768653104818,-1044.14,0.00018356,3]
[402311638,1768653104827,-1102.58,0.00018356,3]
[402311639,1768653104837,-500.0,0.00018356,3]
[402311640,1768653104846,-1108.81,0.00018356,3]
[402311641,1768653104856,-1412.19,0.00018356,3]
[402311642,1768653104865,-2136.32,0.00018356,3]
[402311643,1768653104875,-535.22,0.00018356,3]
[402311644,1768653104884,-500.0,0.00018356,3]
[402311645,1768653104893,-929.98,0.00018356,3]
[402311646,1768653104903,-500.0,0.00018356,3]
[402311647,1768653104912,-913.11,0.00018356,3]
[402311648,1768653104922,-2020.66,0.00018356,3]
[402311649,1768653104931,-686.85,0.00018356,3]
[402311650,1768653104941,-1717.32,0.00018356,3]
[402311651,1768653104951,-1456.0,0.00018356,3]
[402311652,1768653104960,-980.65,0.00018356,3]
[402311653,1768653104970,-577.36,0.00018356,3]
[402311654,1768653104980,-1622.28,0.00018356,3]
[402311655,1768653104990,-500.0,0.00018356,3]
[402311656,1768653105000,-500.0,0.00018356,3]
[402311657,1768653105010,-500.0,0.00018356,3]
[402311658,1768653105020,-500.0,0.00018356,3]
[402311659,1768653105029,-500.0,0.00018356,3]
[402311660,1768653105039,-470.6383794,0.00018356,3]
[402311661,1768653105048,-316.32438621,0.00018356,3]
[402311662,1768653105058,-500.0,0.00018356,3]
[402311663,1768653105067,-500.0,0.00018356,3]
[402311664,1768653105077,-626.22,0.00018356,3]
[402311665,1768653105086,-500.0,0.00018356,3]
[402311666,1768653105095,-1431.76,0.00018356,3]
[402311667,1768653105103,-939.73,0.00018356,3]
[402311668,1768653105111,-500.0,0.00018356,3]
[402311669,1768653105120,-567.25,0.00018356,3]
[402311670,1768653105129,-512.3,0.00018356,3]
[402311671,1768653105138,-1326.69,0.00018356,3]
[402311672,1768653105147,-1526.12,0.00018356,3]
[402311673,1768653105157,-500.0,0.00018356,3]
[402311674,1768653105166,-692.94,0.00018356,3]
[402311675,1768653105176,-1447.89,0.00018356,3]
[402311676,1768653105185,-2677.48,0.00018356,3]
[402311677,1768653105195,-1106.71,0.00018356,3]
[402311678,1768653105204,-622.86303291,0.00018356,3]
[402311679,1768653105214,-500.0,0.00018356,3]
[402311680,1768653105223,-618.83,0.00018356,3]
[402311681,1768653105233,-500.0,0.00018356,3]
[402311682,1768653105243,-500.0,0.00018356,3]
[402311683,1768653105253,-500.0,0.00018356,3]
[402311684,1768653105262,-638.34,0.00018356,3]
[402311685,1768653105272,-500.0,0.00018356,3]
[402311686,1768653105283,-500.0,0.00018356,3]
[402311687,1768653105293,-503.22,0.00018356,3]
[402311688,1768653105302,-581.87,0.00018356,3]
[402311689,1768653105312,-500.0,0.00018356,3]
[402311690,1768653105322,-722.98,0.00018356,3]
[402311691,1768653105331,-500.0,0.00018356,3]
[402311692,1768653105340,-645.09,0.00018356,3]
[402311693,1768653105350,-500.0,0.00018356,3]
[402311694,1768653105359,-863.18,0.00018356,3]
[402311695,1768653105368,-942.19,0.00018356,3]
[402311696,1768653105377,-500.0,0.00018356,3]
[402311697,1768653105387,-500.0,0.00018356,3]
[402311698,1768653105396,-1098.82,0.00018356,3]
[402311699,1768653105405,-500.0,0.00018356,3]
[402311700,1768653105415,-641.28,0.00018356,3]
[402311701,1768653105424,-352.98387266,0.00018356,3]
[402311702,1768653105434,-500.0,0.00018356,3]
[402311703,1768653105444,-500.0,0.00018356,3]
[402311704,1768653105454,-500.0,0.00018356,3]
[402311705,1768653105463,-1330.27,0.00018356,3]
[402311706,1768653105473,-722.95,0.00018356,3]
[402311707,1768653105483,-500.0,0.00018356,3]
[402311708,1768653105493,-500.0,0.00018356,3]
[402311709,1768653105503,-500.0,0.00018356,3]
[402311710,1768653105512,-500.0,0.00018356,3]
[402311711,1768653105523,-500.0,0.00018356,3]
[402311712,1768653105534,-500.0,0.00018356,3]
[402311713,1768653105544,-1081.34,0.00018356,3]
[402311714,1768653105554,-604.11,0.00018356,3]
[402311715,1768653105563,-500.0,0.00018356,3]
[402311716,1768653105571,-784.27,0.00018356,3]
[402311717,1768653105581,-1786.2,0.00018356,3]
[402311718,1768653105590,-500.0,0.00018356,3]
[402311719,1768653105600,-500.0,0.00018356,3]
[402311720,1768653105609,-500.0,0.00018356,3]
[402311721,1768653105618,-500.0,0.00018356,3]
[402311722,1768653105628,-693.3,0.00018356,3]
[402311723,1768653105638,-1628.03,0.00018356,3]
[402311724,1768653105647,-693.9,0.00018356,3]
[402311725,1768653105657,-523.8,0.00018356,3]
[402311726,1768653105666,-998.12,0.00018356,3]
[402311727,1768653105675,-782.18,0.00018356,3]
[402311728,1768653105684,-500.0,0.00018356,3]
[402311729,1768653105694,-500.0,0.00018356,3]
[402311730,1768653105703,-500.0,0.00018356,3]
[402311731,1768653105713,-501.51,0.00018356,3]
[402311732,1768653105726,-1075.34,0.00018356,3]
[402311733,1768653105736,-500.0,0.00018356,3]
[402311734,1768653105746,-500.0,0.00018356,3]
[402311735,1768653105757,-500.0,0.00018356,3]
[402311736,1768653105766,-2815.19,0.00018356,3]
[402311737,1768653105774,-500.0,0.00018356,3]
[402311738,1768653105783,-500.0,0.00018356,3]
[402311739,1768653105792,-500.0,0.00018356,3]
[402311740,1768653105802,-500.0,0.00018356,3]
[402311741,1768653105811,-348.04789676,0.00018356,3]
[402311742,1768653105820,-1439.17,0.00018356,3]
[402311743,1768653105830,-533.98,0.00018356,3]
[402311744,1768653105839,-1659.97,0.00018356,3]
[402311745,1768653105848,-500.0,0.00018356,3]
[402311746,1768653105857,-2433.28,0.00018356,3]
[402311747,1768653105867,-500.0,0.00018356,3]
[402311748,1768653105877,-578.09,0.00018356,3]
[402311749,1768653105886,-659.07,0.00018356,3]
[402311750,1768653105896,-1851.83,0.00018356,3]
[402311751,1768653105906,-500.0,0.00018356,3]
[402311752,1768653105915,-500.0,0.00018356,3]
[402311753,1768653105925,-875.55,0.00018356,3]
[402311754,1768653105934,-508.96,0.00018356,3]
[402311755,1768653105944,-8441.37,0.00018356,3]
[402311756,1768653105954,-500.0,0.00018356,3]
[402311757,1768653105963,-980.47,0.00018356,3]
[402311758,1768653105973,-601.82,0.00018356,3]
[402311759,1768653105983,-500.0,0.00018356,3]
[402311760,1768653105993,-500.0,0.00018356,3]
[402311761,1768653106003,-953.59,0.00018356,3]
[402311762,1768653106013,-500.0,0.00018356,3]
[402311763,1768653106023,-1106.34,0.00018356,3]
[402311764,1768653106032,-785.13,0.00018356,3]
[402311765,1768653106042,-733.19,0.00018356,3]
[402311766,1768653106052,-920.91,0.00018356,3]
[402311767,1768653106062,-1239.92,0.00018356,3]
[402311768,1768653106072,-1089.71,0.00018356,3]
[402311769,1768653106081,-976.59,0.00018356,3]
[402311770,1768653106092,-1186.93,0.00018356,3]
[402311771,1768653106102,-1777.27,0.00018356,3]
[402311772,1768653106112,-972.38,0.00018356,3]
[402311773,1768653106122,-500.0,0.00018356,3]
[402311774,1768653106132,-2039.45,0.00018356,3]
[402311775,1768653106141,-680.35,0.00018356,3]
[402311776,1768653106151,-500.0,0.00018356,3]
[402311777,1768653106161,-1072.76,0.00018356,3]
[402311778,1768653106170,-500.0,0.00018356,3]
[402311779,1768653106180,-500.0,0.00018356,3]
[402311780,1768653106190,-500.0,0.00018356,3]
[402311781,1768653106200,-1670.99,0.00018356,3]
[402311782,1768653106209,-964.42,0.00018356,3]
[402311783,1768653106220,-822.95,0.00018356,3]
[402311784,1768653106231,-643.39,0.00018356,3]
[402311785,1768653106242,-500.0,0.00018356,3]
[402311786,1768653106255,-1613.1,0.00018356,3]
[402311787,1768653106265,-500.0,0.00018356,3]
[402311788,1768653106275,-500.0,0.00018356,3]
[402311789,1768653106285,-500.0,0.00018356,3]
[402311790,1768653106295,-500.0,0.00018356,3]
[402311791,1768653106305,-500.0,0.00018356,3]
[402311792,1768653106315,-1112.08,0.00018356,3]
[402311793,1768653106325,-612.1,0.00018356,3]
[402311794,1768653106335,-500.0,0.00018356,3]
[402311795,1768653106344,-561.1438134,0.00018356,3]
[402311796,1768653106354,-1670.51,0.00018356,3]
[402311797,1768653106364,-1806.23,0.00018356,3]
[402311798,1768653106374,-500.0,0.00018356,3]
[402311799,1768653106384,-566.52,0.00018356,3]
[402311800,1768653106394,-500.0,0.00018356,3]
[402311801,1768653106404,-508.15,0.00018356,3]
[402311802,1768653106413,-1170.72,0.00018356,3]
[402311803,1768653106425,-974.97,0.00018356,3]
[402311804,1768653106435,-500.0,0.00018356,3]
[402311805,1768653106446,-626.5,0.00018356,3]
[402311806,1768653106456,-1530.01,0.00018356,3]
[402311807,1768653106465,-500.0,0.00018356,3]
[402311808,1768653106474,-500.0,0.00018356,3]
[402311809,1768653106484,-1016.59,0.00018356,3]
[402311810,1768653106495,-595.91030795,0.00018356,3]
[402311811,1768653106505,-500.0,0.00018356,3]
[402311812,1768653106515,-871.59,0.00018356,3]
[402311813,1768653106524,-570.88,0.00018356,3]
[402311814,1768653106534,-791.73,0.00018356,3]
[402311815,1768653106544,-849.02,0.00018356,3]
[402311816,1768653106554,-616.67576151,0.00018356,3]
[402311817,1768653106565,-426.38732043,0.00018356,3]
[402311818,1768653106579,-1482.88,0.00018356,3]
[402311819,1768653106589,-617.9,0.00018356,3]
[402311820,1768653106600,-500.0,0.00018356,3]
[402311821,1768653106609,-500.0,0.00018356,3]
[402311822,1768653106619,-306.16209203,0.00018356,3]
[402311823,1768653106629,-863.5,0.00018356,3]
[402311824,1768653106638,-500.0,0.00018356,3]
[402311825,1768653106648,-753.38,0.00018356,3]
[402311826,1768653106658,-500.0,0.00018356,3]
[402311827,1768653106668,-500.0,0.00018356,2]
[402311828,1768653106678,-500.0,0.00018356,3]
[402311829,1768653106688,-1911.71,0.00018356,3]
[402311830,1768653106699,-500.0,0.00018356,3]
[402311831,1768653106713,-14952.36,0.00018356,3]
[402311832,1768653106726,-500.0,0.00018356,3]
[402311833,1768653106736,-500.0,0.00018356,2]
[402311834,1768653106746,-500.0,0.00018356,3]
[402311835,1768653106755,-501.88,0.00018356,3]
[402311836,1768653106765,-500.0,0.00018356,3]
[402311837,1768653106774,-871.62,0.00018356,3]
[402311838,1768653106785,-500.0,0.00018356,3]
[402311839,1768653106795,-530.71,0.00018356,3]
[402311840,1768653106806,-634.18,0.00018356,3]
[402311841,1768653106816,-1429.84,0.00018356,3]
[402311842,1768653106826,-500.0,0.00018356,3]
[402311843,1768653106836,-500.0,0.00018356,3]
[402311844,1768653106846,-500.0,0.00018356,3]
[402311845,1768653106856,-500.0,0.00018356,3]
[402311846,1768653106866,-500.0,0.00018356,3]
[402311847,1768653106877,-1003.52,0.00018356,3]
[402311848,1768653106886,-565.41,0.00018356,3]
[402311849,1768653106895,-500.0,0.00018356,3]
[402311850,1768653106905,-2006.9,0.00018356,3]
[402311851,1768653106915,-1200.0,0.00018356,2]
[402311852,1768653106925,-3788.27,0.00018356,3]
[402311853,1768653106935,-500.0,0.00018356,2]
[402311854,1768653106945,-800.0,0.00018374,2]
[402311855,1768653106955,-800.0,0.00018399,2]
[402311856,1768653106965,-800.0,0.00018408,2]
[402311857,1768653106974,-268.0,0.00018412,2]
[402311858,1768653106985,-387.17523187,0.00018414,2]
[402311859,1768653106996,-800.0,0.00018433,2]
[402311860,1768653107008,-14212.21684336,0.00018454,2]
[402311861,1768653107019,-800.0,0.00018484,2]
[402311862,1768653107030,-3608.47613542,0.00018491,2]
[402311863,1768653107040,-279.911641,0.00018493,2]
[402311864,1768653107051,-203.28415453,0.00018498,2]
[402311865,1768653107060,-281.0,0.000185,2]
[402311866,1768653107068,-800.0,0.00018557,2]
[402311867,1768653107078,-800.0,0.00018557,2]
[402311868,1768653107090,-800.0,0.00018565,2]
[402311869,1768653107099,-800.0,0.0001857,2]
[402311870,1768653107111,-800.0,0.00018571,2]
[402311871,1768653107122,-800.0,0.00018573,2]
[402311872,1768653107132,-340.0,0.00018579,2]
[402311873,1768653107142,-574438.74429809,0.000186,2]
[402311874,1768653107152,-150.58,0.000186,2]
[402311875,1768653107160,-800.0,0.000186,2]
[402311876,1768653107174,-1059.18977848,0.000186,2]
[402311877,1768653107183,-789212.58315545,0.0001862,2]
[402311878,1768653108258,-500.0,0.00016438,3]
[402311879,1768653108268,-500.0,0.00016841,2]
[402311880,1768653108279,-1847.87260389,0.00016841,2]
[402311881,1768653108288,-1033.63501303,0.00016896,2]
[402311882,1768653108299,-1401.10887721,0.00016896,2]
[402311883,1768653108309,-2524.82941417,0.00016951,2]
[402311884,1768653108319,-500.0,0.00017534,3]
[402311885,1768653108328,-470.69247615,0.00017808,3]
[402311886,1768653108339,-623.54752385,0.00017808,3]
[402311887,1768653108352,-500.0,0.00017808,3]
[402311888,1768653108362,-500.0,0.00017808,3]
[402311889,1768653108372,-1094.24,0.00018082,3]
[402311890,1768653108381,-500.0,0.00018082,3]
[402311891,1768653108390,-500.0,0.00018082,3]
[402311892,1768653108399,-1094.24,0.00018356,3]
[402311893,1768653108408,-648.35428083,0.00018356,3]
[402311894,1768653108418,-500.0,0.00018356,3]
[402311895,1768653108427,-78138.52454012,0.0001862,2]
[402311896,1768653108439,-14476.11322515,0.0001862,2]
[402311897,1768653108455,-4310.01002264,0.0001862,2]
[402311898,1768653108794,-500.0,0.00016438,3]
[402311899,1768653108805,-257.50071439,0.00016712,3]
[402311900,1768653108818,-242.49928561,0.00016712,3]
[402311901,1768653108828,-669.25071439,0.00017006,2]
[402311902,1768653108840,-543.13181386,0.00017006,2]
[402311903,1768653108966,-1405.86557425,0.00017006,2]
[402311904,1768653108977,-297.91529275,0.00017061,2]
[402311905,1768653108986,-236.45591047,0.00018082,3]
[402311906,1768653108995,-236.45591047,0.00018356,3]
[402311907,1768653109005,-4357.62521604,0.0001862,2]
[402311908,1768653109021,-552.82,0.00016438,3]
[402311909,1768653109030,-6184.71121921,0.0001862,2]
[402311910,1768653125395,539.12744913,0.000154,120]
[402311923,1768653480132,256.05,1.998e-05,2]
[402311956,1768654232428,-173.51,9.213e-05,2]
[402311959,1768654232443,-549.0,9.213e-05,2]
[402311961,1768654232454,-266.06473205,9.302e-05,2]
[402311963,1768654232467,-18.1209254,9.302e-05,2]
[402311965,1768654232479,-300.0,9.391e-05,2]
[402311966,1768654232490,-300.0,9.391e-05,2]
[402311968,1768654232503,-300.0,9.391e-05,2]
[402311969,1768654232514,-1200.0,9.391e-05,2]
[402311970,1768654232524,-10000.0,9.392e-05,2]
[402311971,1768654232535,-216.89,9.597e-05,2]
[402311972,1768654232546,-260.26,9.98e-05,2]
[402311973,1768654232557,-420.0,0.0001033,2]
[402311974,1768654232567,-303.64,0.00010364,2]
[402311976,1768654232578,-50000.0,0.00010399,2]
[402311979,1768654232589,-500.0,0.000104,2]
[402311981,1768654232599,-500.0,0.000104,2]
[402311983,1768654232610,-500.0,0.000104,2]
[402311985,1768654232620,-500.0,0.000104,2]
[402311987,1768654232631,-509.28931829,0.000104,2]
[402311988,1768654232641,-500.0,0.000104,2]
[402311989,1768654232652,-573.04806928,0.000104,2]
[402311990,1768654232663,-347.02,0.00010748,2]
[402311991,1768654232674,-93481.1575259,0.00011049,2]
[402311992,1768654232685,-390.4,0.00011132,2]
[402311993,1768654232696,-335.33907579,0.00011302,2]
[402311994,1768654232707,-587.0,0.00011363,2]
[402311995,1768654232717,-433.77,0.00011516,2]
[402311996,1768654232728,-250.0,0.00011623,2]
[402311997,1768654232739,-455.691,0.00012046,2]
[402311998,1768654232750,-406.06671583,0.00012091,2]
[402311999,1768654232761,-823.0,0.00012499,2]
[402312000,1768654232771,-1947.92215207,0.000129,2]
[402312001,1768654232792,-1543.16857932,0.000129,2]
[402312002,1768654232805,-3096.27837124,0.000129,2]
[402312003,1768654232815,-6587.36910261,0.000129,2]
[402312004,1768654232827,-163.34818571,0.00013273,2]
[402312005,1768654232837,-500.0,0.00013273,2]
[402312006,1768654232847,-386.49249413,0.00013302,2]
[402312007,1768654232858,-330.47465388,0.00013598,2]
[402312009,1768654232869,-183936.03719243,0.00013598,2]
[402312010,1768654238608,-7119.19737678,0.00013598,2]
[402312011,1768654238620,-2317.69516141,0.00013598,2]
[402312012,1768654238633,-806627.07026938,0.00013598,2]
[402312013,1768654238645,-500.0,0.00013698,2]
[402312014,1768654238655,-500.0,0.00013698,2]
[402312015,1768654238666,-275.23827501,0.00013698,2]
[402312016,1768654238678,-500.0,0.00013698,2]
[402312017,1768654238688,-500.0,0.00013698,2]
[402312018,1768654238699,-500.0,0.00013698,2]
[402312019,1768654238709,-500.0,0.00013698,2]
[402312020,1768654238721,-500.0,0.00013698,2]
[402312021,1768654238731,-500.0,0.00013698,2]
[402312022,1768654238742,-500.0,0.00013698,2]
[402312023,1768654238752,-500.0,0.00013698,2]
[402312024,1768654238764,-582.50112986,0.00013698,2]
[402312025,1768654238775,-1974.72,0.00013698,2]
[402312026,1768654238785,-1974.72,0.00013698,2]
[402312027,1768654238796,-1974.72,0.00013698,2]
[402312028,1768654238806,-1974.72,0.00013698,2]
[402312029,1768654238817,-1974.72,0.00013698,2]
[402312030,1768654238827,-1974.72,0.00013698,2]
[402312031,1768654238839,-1974.72,0.00013698,2]
[402312032,1768654238850,-1974.72,0.00013698,2]
[402312033,1768654238862,-1974.72,0.00013698,2]
[402312034,1768654238872,-1974.72,0.00013698,2]
[402312035,1768654238883,-500.0,0.00013698,2]
[402312036,1768654238893,-500.0,0.00013698,2]
[402312037,1768654238904,-500.0,0.00013698,2]
[402312038,1768654238915,-500.0,0.00013698,2]
[402312039,1768654238925,-500.0,0.00013698,2]
[402312040,1768654238936,-500.0,0.00013698,2]
[402312041,1768654238946,-500.0,0.00013698,2]
[402312042,1768654238956,-500.0,0.00013698,2]
[402312043,1768654238967,-500.0,0.00013698,2]
[402312044,1768654238977,-283.56730347,0.00013698,2]
[402312045,1768654238988,-504.02212957,0.00013698,2]
[402312046,1768654238999,-500.0,0.00013698,2]
[402312047,1768654239009,-500.0,0.00013698,2]
[402312048,1768654239020,-500.0,0.00013698,2]
[402312049,1768654239031,-500.0,0.00013698,2]
[402312050,1768654239042,-500.0,0.00013698,2]
[402312051,1768654239053,-500.0,0.00013698,2]
[402312052,1768654239063,-500.0,0.00013698,2]
[402312053,1768654239074,-500.0,0.00013698,2]
[402312054,1768654239084,-500.0,0.00013698,2]
[402312055,1768654239095,-500.0,0.00013698,2]
[402312056,1768654239105,-500.0,0.00013698,2]
[402312057,1768654239116,-500.0,0.00013698,2]
[402312058,1768654239127,-500.0,0.00013698,2]